[Event "*** Titled Tuesday Blitz"]
[Site "Chess.com"]
[Date "2019.02.05"]
[Round "6"]
[White "Bigfish1995"]
[Black "Dr-Bassem"]
[Result "1-0"]
[WhiteElo "2963"]
[BlackElo "2768"]
[TimeControl "180+2"]
[EndTime "14:22:32 PST"]
[Termination "Bigfish1995 won by checkmate"]

1. d4 {[%clk 0:02:35.1]} 1... e6 {[%clk 0:02:51.8]} 2. e4 {[%clk 0:02:35.6]}
2... d5 {[%clk 0:02:51.9]} 3. e5 {[%clk 0:02:36.6]} 3... c5 {[%clk 0:02:52.6]}
4. c3 {[%clk 0:02:38]} 4... Nc6 {[%clk 0:02:54.2]} 5. Nf3 {[%clk 0:02:39.2]}
5... Bd7 {[%clk 0:02:55.8]} 6. Bd3 {[%clk 0:02:38.1]} 6... cxd4 {[%clk
0:02:31.2]} 7. cxd4 {[%clk 0:02:37.4]} 7... Nb4 {[%clk 0:02:32.6]} 8. Be2 {[%clk
0:02:35.6]} 8... Rc8 {[%clk 0:02:15.2]} 9. Nc3 {[%clk 0:02:36.5]} 9... Nh6
{[%clk 0:02:11.4]} 10. a3 {[%clk 0:02:32.7]} 10... Nc6 {[%clk 0:02:12.6]} 11.
O-O {[%clk 0:02:30.3]} 11... Nf5 {[%clk 0:02:06.5]} 12. g4 {[%clk 0:02:28.8]}
12... Nh4 {[%clk 0:02:06.1]} 13. Nxh4 {[%clk 0:02:30]} 13... Qxh4 {[%clk
0:02:06.8]} 14. Be3 {[%clk 0:02:27]} 14... Be7 {[%clk 0:02:03.9]} 15. f4 {[%clk
0:02:27.3]} 15... h5 {[%clk 0:01:48.6]} 16. g5 {[%clk 0:02:24.6]} 16... f6
{[%clk 0:01:37.2]} 17. gxf6 {[%clk 0:02:04.3]} 17... gxf6 {[%clk 0:01:37.1]} 18.
Kh1 {[%clk 0:02:05.6]} 18... Rg8 {[%clk 0:01:16.9]} 19. Qd3 {[%clk 0:01:54.5]}
19... f5 {[%clk 0:00:59.7]} 20. Bf2 {[%clk 0:01:41.8]} 20... Qxf4 {[%clk
0:00:59.7]} 21. Be3 {[%clk 0:01:43.1]} 21... Qh4 {[%clk 0:00:52.3]} 22. Rf4
{[%clk 0:01:43.1]} 22... Rg4 {[%clk 0:00:53.4]} 23. Bxg4 {[%clk 0:01:32.5]}
23... hxg4 {[%clk 0:00:55.3]} 24. Rg1 {[%clk 0:01:31.1]} 24... Nd8 {[%clk
0:00:35.3]} 25. Rgxg4 {[%clk 0:00:53.4]} 25... fxg4 {[%clk 0:00:36.1]} 26. Qg6+
{[%clk 0:00:54.4]} 26... Nf7 {[%clk 0:00:37.8]} 27. Qg8+ {[%clk 0:00:55.7]}
27... Bf8 {[%clk 0:00:35]} 28. Rxf7 {[%clk 0:00:50.7]} 28... Rxc3 {[%clk
0:00:16.4]} 29. Qxf8# {[%clk 0:00:50.8]} 1-0

[Event "*** Titled Tuesday Blitz"]
[Site "Chess.com"]
[Date "2019.02.05"]
[Round "6"]
[White "Entilza"]
[Black "Morshynska"]
[Result "1-0"]
[WhiteElo "2222"]
[BlackElo "2078"]
[TimeControl "180+2"]
[EndTime "14:22:32 PST"]
[Termination "Entilza won on time"]

1. d4 {[%clk 0:02:59.8]} 1... Nf6 {[%clk 0:03:00]} 2. c4 {[%clk 0:02:59]} 2...
e6 {[%clk 0:03:00.5]} 3. Nc3 {[%clk 0:02:58.3]} 3... Bb4 {[%clk 0:03:00.3]} 4.
e3 {[%clk 0:02:58.2]} 4... b6 {[%clk 0:03:00.9]} 5. Ne2 {[%clk 0:02:56.6]} 5...
Ba6 {[%clk 0:02:58.9]} 6. a3 {[%clk 0:02:54.2]} 6... Bxc3+ {[%clk 0:02:59.7]} 7.
Nxc3 {[%clk 0:02:55]} 7... d5 {[%clk 0:03:00.7]} 8. b3 {[%clk 0:02:41]} 8... O-O
{[%clk 0:02:54.7]} 9. Bd3 {[%clk 0:02:36.1]} 9... dxc4 {[%clk 0:02:48.2]} 10.
bxc4 {[%clk 0:02:34.6]} 10... Nc6 {[%clk 0:02:44.6]} 11. O-O {[%clk 0:02:32.4]}
11... Na5 {[%clk 0:02:44.8]} 12. Qe2 {[%clk 0:02:32.4]} 12... c5 {[%clk
0:02:38]} 13. Rd1 {[%clk 0:02:31.4]} 13... cxd4 {[%clk 0:02:32.7]} 14. exd4
{[%clk 0:02:31.3]} 14... Rc8 {[%clk 0:01:55.7]} 15. Bg5 {[%clk 0:02:30.4]} 15...
h6 {[%clk 0:01:52.1]} 16. Bxf6 {[%clk 0:02:26.1]} 16... Qxf6 {[%clk 0:01:54]}
17. Nb5 {[%clk 0:02:20]} 17... Bxb5 {[%clk 0:01:40]} 18. cxb5 {[%clk 0:02:21.9]}
18... Nb3 {[%clk 0:01:18.4]} 19. Rab1 {[%clk 0:02:17.2]} 19... Nxd4 {[%clk
0:01:17.8]} 20. Qe4 {[%clk 0:02:17.1]} 20... g6 {[%clk 0:01:11.5]} 21. Qb7
{[%clk 0:02:16.6]} 21... Rc5 {[%clk 0:00:52.7]} 22. Qxa7 {[%clk 0:02:14.4]}
22... Rg5 {[%clk 0:00:52.2]} 23. Qxb6 {[%clk 0:02:07.2]} 23... Nf3+ {[%clk
0:00:33]} 24. Kh1 {[%clk 0:02:03]} 24... Qf4 {[%clk 0:00:21.3]} 25. g3 {[%clk
0:02:02.7]} 25... Qg4 {[%clk 0:00:18.8]} 26. Be2 {[%clk 0:01:59.4]} 26... Qh5
{[%clk 0:00:09.8]} 27. Bxf3 {[%clk 0:01:57.9]} 27... Qxf3+ {[%clk 0:00:11.7]}
28. Kg1 {[%clk 0:01:58.8]} 28... h5 {[%clk 0:00:07.4]} 29. Qe3 {[%clk 0:01:57]}
29... Qf6 {[%clk 0:00:04.8]} 30. b6 {[%clk 0:01:55.6]} 30... h4 {[%clk
0:00:04.7]} 31. b7 {[%clk 0:01:55.2]} 31... Rb8 {[%clk 0:00:03.6]} 32. Rdc1
{[%clk 0:01:50.7]} 32... Kh7 {[%clk 0:00:03.1]} 33. Rc4 {[%clk 0:01:41.2]} 1-0

[Event "*** Titled Tuesday Blitz"]
[Site "Chess.com"]
[Date "2019.02.05"]
[Round "6"]
[White "Alekseyviktorovich"]
[Black "VeraNebolsina"]
[Result "1-0"]
[WhiteElo "2331"]
[BlackElo "2375"]
[TimeControl "180+2"]
[EndTime "14:22:33 PST"]
[Termination "Alekseyviktorovich won by resignation"]

1. e4 {[%clk 0:03:01.9]} 1... c5 {[%clk 0:02:58.7]} 2. Nf3 {[%clk 0:03:02.3]}
2... d6 {[%clk 0:02:55.3]} 3. Bb5+ {[%clk 0:03:02.5]} 3... Bd7 {[%clk
0:02:53.6]} 4. Bxd7+ {[%clk 0:03:02.9]} 4... Qxd7 {[%clk 0:02:52.8]} 5. c4
{[%clk 0:03:03.2]} 5... Nc6 {[%clk 0:02:51.6]} 6. d4 {[%clk 0:03:03.5]} 6...
cxd4 {[%clk 0:02:52.1]} 7. Nxd4 {[%clk 0:03:04.3]} 7... g6 {[%clk 0:02:52.5]} 8.
b3 {[%clk 0:03:05.2]} 8... Bg7 {[%clk 0:02:52.8]} 9. Bb2 {[%clk 0:03:06.1]} 9...
Nf6 {[%clk 0:02:52.6]} 10. Nc3 {[%clk 0:03:06.7]} 10... O-O {[%clk 0:02:51]} 11.
O-O {[%clk 0:03:07.1]} 11... Rfd8 {[%clk 0:02:38.2]} 12. Re1 {[%clk 0:02:59.7]}
12... e6 {[%clk 0:02:15.3]} 13. Rc1 {[%clk 0:02:46.1]} 13... Nxd4 {[%clk
0:02:08.5]} 14. Qxd4 {[%clk 0:02:46.1]} 14... Nd5 {[%clk 0:02:00.2]} 15. Qd2
{[%clk 0:02:44.9]} 15... Nxc3 {[%clk 0:02:00.2]} 16. Bxc3 {[%clk 0:02:45.5]}
16... Bxc3 {[%clk 0:02:00]} 17. Rxc3 {[%clk 0:02:45.9]} 17... b5 {[%clk
0:01:44.2]} 18. cxb5 {[%clk 0:02:17.3]} 18... Qxb5 {[%clk 0:01:44.4]} 19. Qh6
{[%clk 0:02:09.9]} 19... Qe5 {[%clk 0:01:38.7]} 20. Rh3 {[%clk 0:01:53.7]} 20...
Qg7 {[%clk 0:01:39.5]} 21. Qd2 {[%clk 0:01:42.3]} 21... h5 {[%clk 0:01:32.9]}
22. Rd3 {[%clk 0:01:42.5]} 22... Qe5 {[%clk 0:01:30.8]} 23. f4 {[%clk
0:01:38.6]} 23... Qc5+ {[%clk 0:01:31.2]} 24. Kh1 {[%clk 0:01:39.7]} 24... Rac8
{[%clk 0:01:32.1]} 25. e5 {[%clk 0:01:29.5]} 25... d5 {[%clk 0:01:28.8]} 26. f5
{[%clk 0:01:24.5]} 26... exf5 {[%clk 0:01:26.9]} 27. e6 {[%clk 0:01:24.7]} 27...
fxe6 {[%clk 0:01:25.3]} 28. Qh6 {[%clk 0:01:21.1]} 28... Kf7 {[%clk 0:01:01.2]}
29. Qh7+ {[%clk 0:00:51.5]} 29... Kf6 {[%clk 0:01:00.8]} 30. h3 {[%clk
0:00:51.2]} 30... Qe7 {[%clk 0:00:38.6]} 31. Qh6 {[%clk 0:00:48.3]} 31... Qg7
{[%clk 0:00:36]} 32. Rxe6+ {[%clk 0:00:46.8]} 1-0

[Event "*** Titled Tuesday Blitz"]
[Site "Chess.com"]
[Date "2019.02.05"]
[Round "6"]
[White "LuisFSiles"]
[Black "Caisachess"]
[Result "1-0"]
[WhiteElo "2259"]
[BlackElo "2360"]
[TimeControl "180+2"]
[EndTime "14:22:39 PST"]
[Termination "LuisFSiles won by resignation"]

1. e4 {[%clk 0:03:01.9]} 1... e5 {[%clk 0:03:00.6]} 2. Nf3 {[%clk 0:03:02.5]}
2... Nc6 {[%clk 0:03:01.8]} 3. Bc4 {[%clk 0:03:03]} 3... Bc5 {[%clk 0:03:02.1]}
4. O-O {[%clk 0:03:03.5]} 4... Nf6 {[%clk 0:03:02.8]} 5. d4 {[%clk 0:03:04.6]}
5... exd4 {[%clk 0:03:03.2]} 6. e5 {[%clk 0:03:01.8]} 6... d5 {[%clk 0:03:03.4]}
7. exf6 {[%clk 0:03:02.4]} 7... dxc4 {[%clk 0:03:04.4]} 8. fxg7 {[%clk
0:02:59.4]} 8... Rg8 {[%clk 0:03:04.2]} 9. Bg5 {[%clk 0:03:00.9]} 9... Be7
{[%clk 0:02:56.6]} 10. Bxe7 {[%clk 0:02:50.3]} 10... Qxe7 {[%clk 0:02:52.4]} 11.
Nxd4 {[%clk 0:02:46.9]} 11... Nxd4 {[%clk 0:02:47.6]} 12. Qxd4 {[%clk
0:02:46.7]} 12... Be6 {[%clk 0:02:49.1]} 13. Nc3 {[%clk 0:02:33.9]} 13... Rd8
{[%clk 0:02:49.1]} 14. Qxa7 {[%clk 0:02:28.5]} 14... Rxg7 {[%clk 0:02:36]} 15.
Qxb7 {[%clk 0:02:26.1]} 15... Kf8 {[%clk 0:02:30.3]} 16. Rfe1 {[%clk 0:02:01.4]}
16... Qg5 {[%clk 0:02:27.2]} 17. Rad1 {[%clk 0:01:48.4]} 17... Bd5 {[%clk
0:02:16.4]} 18. Qb4+ {[%clk 0:01:31.4]} 18... Kg8 {[%clk 0:01:56.1]} 19. g3
{[%clk 0:01:28.7]} 19... c6 {[%clk 0:01:44.2]} 20. Qe7 {[%clk 0:01:20.3]} 20...
Qxe7 {[%clk 0:01:29.6]} 21. Rxe7 {[%clk 0:01:22.2]} 21... Rg5 {[%clk 0:01:22.9]}
22. f4 {[%clk 0:01:18.3]} 22... Rf5 {[%clk 0:01:24]} 23. Rde1 {[%clk 0:00:57.5]}
23... Be6 {[%clk 0:01:20.6]} 24. Kf2 {[%clk 0:00:50.4]} 24... h5 {[%clk
0:01:16.6]} 25. Ne4 {[%clk 0:00:44.8]} 25... Rb5 {[%clk 0:00:59.4]} 26. b3
{[%clk 0:00:39.2]} 26... cxb3 {[%clk 0:01:00]} 27. axb3 {[%clk 0:00:41.1]} 27...
Kf8 {[%clk 0:00:57.9]} 28. Rc7 {[%clk 0:00:40.3]} 28... Bd5 {[%clk 0:00:54.3]}
29. Ng5 {[%clk 0:00:38.1]} 29... Ra5 {[%clk 0:00:50.8]} 30. c4 {[%clk
0:00:34.2]} 30... Ra2+ {[%clk 0:00:47.7]} 31. Re2 {[%clk 0:00:35.5]} 31... Re8
{[%clk 0:00:49.1]} 32. Rxa2 {[%clk 0:00:35.5]} 1-0

[Event "*** Titled Tuesday Blitz"]
[Site "Chess.com"]
[Date "2019.02.05"]
[Round "6"]
[White "cherryandmint"]
[Black "nubair1198"]
[Result "1-0"]
[WhiteElo "2631"]
[BlackElo "2651"]
[TimeControl "180+2"]
[EndTime "14:22:44 PST"]
[Termination "cherryandmint won by resignation"]

1. e4 {[%clk 0:03:01.9]} 1... g6 {[%clk 0:03:01.3]} 2. d4 {[%clk 0:03:02.5]}
2... Bg7 {[%clk 0:03:02.7]} 3. Nf3 {[%clk 0:03:02.9]} 3... c6 {[%clk 0:03:03.1]}
4. Be2 {[%clk 0:03:03.5]} 4... d6 {[%clk 0:02:59.1]} 5. O-O {[%clk 0:03:03.4]}
5... Nf6 {[%clk 0:03:00.7]} 6. Nc3 {[%clk 0:03:02.9]} 6... O-O {[%clk 0:03:02]}
7. Re1 {[%clk 0:03:03]} 7... e5 {[%clk 0:02:57.7]} 8. dxe5 {[%clk 0:03:02.5]}
8... dxe5 {[%clk 0:02:59.6]} 9. Qxd8 {[%clk 0:03:03.2]} 9... Rxd8 {[%clk
0:03:00.4]} 10. Nxe5 {[%clk 0:03:03.3]} 10... Nxe4 {[%clk 0:02:07]} 11. Nxe4
{[%clk 0:03:02.6]} 11... Bxe5 {[%clk 0:02:07.7]} 12. Bg5 {[%clk 0:03:03.1]}
12... Re8 {[%clk 0:02:06]} 13. Bc4 {[%clk 0:03:01.1]} 13... Be6 {[%clk
0:01:52.6]} 14. Bxe6 {[%clk 0:02:45]} 14... Rxe6 {[%clk 0:01:54.5]} 15. Nc5
{[%clk 0:02:45.5]} 15... Re8 {[%clk 0:01:34.9]} 16. Bf6 {[%clk 0:02:41.1]} 16...
b6 {[%clk 0:00:51.1]} 17. Nd3 {[%clk 0:02:30.7]} 17... Bxf6 {[%clk 0:00:51.4]}
18. Rxe8+ {[%clk 0:02:27.5]} 18... Kg7 {[%clk 0:00:53.3]} 19. Nb4 {[%clk
0:02:26.9]} 19... c5 {[%clk 0:00:48.7]} 20. Na6 {[%clk 0:02:20.4]} 20... Nxa6
{[%clk 0:00:49.7]} 21. Rxa8 {[%clk 0:02:21.5]} 21... Bxb2 {[%clk 0:00:51.6]} 22.
Rb1 {[%clk 0:02:22.2]} 22... Bd4 {[%clk 0:00:52.7]} 23. Rxa7 {[%clk 0:02:23.4]}
23... Nb4 {[%clk 0:00:54.6]} 24. Rxb4 {[%clk 0:02:11.8]} 24... cxb4 {[%clk
0:00:54]} 25. Kf1 {[%clk 0:02:13.7]} 25... Kf6 {[%clk 0:00:54.8]} 26. f4 {[%clk
0:02:13.3]} 26... h5 {[%clk 0:00:53.7]} 27. Ke2 {[%clk 0:02:14.1]} 27... Ke6
{[%clk 0:00:52.9]} 28. Kf3 {[%clk 0:02:13.9]} 28... Bc5 {[%clk 0:00:50.5]} 29.
h3 {[%clk 0:02:13.4]} 29... f5 {[%clk 0:00:49.7]} 30. g4 {[%clk 0:02:14]} 30...
hxg4+ {[%clk 0:00:50.3]} 31. hxg4 {[%clk 0:02:15.9]} 31... fxg4+ {[%clk
0:00:49.2]} 32. Kxg4 {[%clk 0:02:17]} 32... Kd5 {[%clk 0:00:47.5]} 33. Rg7
{[%clk 0:02:16]} 33... Kc4 {[%clk 0:00:46.6]} 34. Rxg6 {[%clk 0:02:16.8]} 34...
Kc3 {[%clk 0:00:48.3]} 35. f5 {[%clk 0:02:16.8]} 35... Kxc2 {[%clk 0:00:49.8]}
36. Kf4 {[%clk 0:02:08.1]} 36... Kb2 {[%clk 0:00:49]} 37. Rg2+ {[%clk
0:02:08.2]} 37... Ka3 {[%clk 0:00:50.6]} 38. Ke5 {[%clk 0:02:06.7]} 38... b3
{[%clk 0:00:42.9]} 39. axb3 {[%clk 0:02:06.9]} 39... Kxb3 {[%clk 0:00:44.8]} 40.
Kd5 {[%clk 0:02:08.4]} 40... Be7 {[%clk 0:00:36.2]} 41. Rg7 {[%clk 0:02:08.4]}
41... Bf8 {[%clk 0:00:33.8]} 42. Rb7 {[%clk 0:02:08.1]} 42... Bc5 {[%clk
0:00:32.6]} 43. f6 {[%clk 0:02:08]} 43... Ka4 {[%clk 0:00:34]} 44. f7 {[%clk
0:02:08.8]} 44... Ka5 {[%clk 0:00:33.8]} 45. Kc6 {[%clk 0:02:09.7]} 45... Ka6
{[%clk 0:00:16.6]} 46. Rxb6+ {[%clk 0:02:08.2]} 46... Bxb6 {[%clk 0:00:18.1]}
47. f8=Q {[%clk 0:02:08.4]} 47... Ka7 {[%clk 0:00:17.5]} 48. Qe7+ {[%clk
0:02:08.4]} 1-0

[Event "*** Titled Tuesday Blitz"]
[Site "Chess.com"]
[Date "2019.02.05"]
[Round "6"]
[White "MasterKroket"]
[Black "mousavian_hamed"]
[Result "0-1"]
[WhiteElo "2390"]
[BlackElo "2564"]
[TimeControl "180+2"]
[EndTime "14:22:46 PST"]
[Termination "mousavian_hamed won by resignation"]

1. d4 {[%clk 0:03:01.9]} 1... Nf6 {[%clk 0:02:59.4]} 2. c4 {[%clk 0:03:03.2]}
2... e6 {[%clk 0:02:58.5]} 3. Nc3 {[%clk 0:03:04.6]} 3... c5 {[%clk 0:02:57.3]}
4. d5 {[%clk 0:03:05.4]} 4... exd5 {[%clk 0:02:58.1]} 5. cxd5 {[%clk 0:03:07.3]}
5... d6 {[%clk 0:02:59]} 6. e4 {[%clk 0:03:08.4]} 6... g6 {[%clk 0:03:00]} 7.
Nf3 {[%clk 0:03:09.7]} 7... Bg7 {[%clk 0:03:00.6]} 8. h3 {[%clk 0:03:10.9]} 8...
O-O {[%clk 0:03:00.8]} 9. Bd3 {[%clk 0:03:12]} 9... b5 {[%clk 0:03:01.2]} 10.
Bxb5 {[%clk 0:03:12.2]} 10... Nxe4 {[%clk 0:02:59.1]} 11. Nxe4 {[%clk
0:03:14.1]} 11... Qa5+ {[%clk 0:02:59.6]} 12. Nfd2 {[%clk 0:03:15.7]} 12... Qxb5
{[%clk 0:02:57.8]} 13. Nxd6 {[%clk 0:03:17.3]} 13... Qa6 {[%clk 0:02:57.1]} 14.
N2c4 {[%clk 0:03:18.8]} 14... Nd7 {[%clk 0:02:50.6]} 15. O-O {[%clk 0:03:18.5]}
15... Nb6 {[%clk 0:02:48.7]} 16. Nxc8 {[%clk 0:03:12.3]} 16... Nxc4 {[%clk
0:02:43.5]} 17. Ne7+ {[%clk 0:03:12.6]} 17... Kh8 {[%clk 0:02:44]} 18. Qd3
{[%clk 0:03:07.1]} 18... Rad8 {[%clk 0:02:38]} 19. Rb1 {[%clk 0:02:49.2]} 19...
Rfe8 {[%clk 0:02:34]} 20. b3 {[%clk 0:02:33.9]} 20... Rxe7 {[%clk 0:02:24.8]}
21. bxc4 {[%clk 0:02:33.4]} 21... Qxa2 {[%clk 0:02:21.7]} 22. Bg5 {[%clk
0:02:27.7]} 22... f6 {[%clk 0:02:22.6]} 23. Be3 {[%clk 0:02:28.6]} 23... Rc7
{[%clk 0:02:15]} 24. d6 {[%clk 0:02:26.9]} 24... Rc6 {[%clk 0:02:12.6]} 25. Rb7
{[%clk 0:02:22.3]} 25... Rcxd6 {[%clk 0:02:09.1]} 26. Qe4 {[%clk 0:02:23.9]}
26... Qa4 {[%clk 0:01:54.9]} 27. Bxc5 {[%clk 0:02:18.8]} 27... R6d7 {[%clk
0:01:53.8]} 28. Rfb1 {[%clk 0:02:11.8]} 28... f5 {[%clk 0:01:46.9]} 29. Qe6
{[%clk 0:01:58.3]} 29... Rxb7 {[%clk 0:01:33.9]} 30. Rxb7 {[%clk 0:01:56.2]}
30... a5 {[%clk 0:01:24.6]} 31. Qe7 {[%clk 0:01:45.9]} 31... Qa1+ {[%clk
0:01:23]} 32. Kh2 {[%clk 0:01:44.6]} 32... Qe5+ {[%clk 0:01:23.3]} 33. g3 {[%clk
0:01:33.7]} 33... Rc8 {[%clk 0:01:15.8]} 34. Bd6 {[%clk 0:01:16.1]} 34... Qxe7
{[%clk 0:01:15.4]} 35. Bxe7 {[%clk 0:01:10.5]} 35... Bd4 {[%clk 0:01:15.6]} 36.
c5 {[%clk 0:01:01.8]} 36... a4 {[%clk 0:01:05]} 37. Ra7 {[%clk 0:00:58.1]} 37...
Bxf2 {[%clk 0:01:02.7]} 38. Rxa4 {[%clk 0:00:55.5]} 38... Bxc5 {[%clk
0:01:02.4]} 39. Rc4 {[%clk 0:00:54.4]} 39... Bg1+ {[%clk 0:01:02.7]} 40. Kxg1
{[%clk 0:00:55]} 40... Rxc4 {[%clk 0:01:03.2]} 0-1

[Event "*** Titled Tuesday Blitz"]
[Site "Chess.com"]
[Date "2019.02.05"]
[Round "6"]
[White "HajiyevKanan"]
[Black "JosefineHeinemann"]
[Result "0-1"]
[WhiteElo "2338"]
[BlackElo "2403"]
[TimeControl "180+2"]
[EndTime "14:22:49 PST"]
[Termination "JosefineHeinemann won by resignation"]

1. d4 {[%clk 0:02:24.2]} 1... Nf6 {[%clk 0:03:00.2]} 2. Nf3 {[%clk 0:02:24.1]}
2... g6 {[%clk 0:03:00.4]} 3. g3 {[%clk 0:02:25.1]} 3... Bg7 {[%clk 0:03:01.6]}
4. Bg2 {[%clk 0:02:27]} 4... O-O {[%clk 0:03:03]} 5. O-O {[%clk 0:02:28.9]} 5...
d5 {[%clk 0:03:03.8]} 6. c4 {[%clk 0:02:30.5]} 6... dxc4 {[%clk 0:03:03.9]} 7.
Na3 {[%clk 0:02:31.9]} 7... c3 {[%clk 0:03:05.5]} 8. bxc3 {[%clk 0:02:32.8]}
8... c5 {[%clk 0:03:06.9]} 9. Nc4 {[%clk 0:02:28.8]} 9... Nc6 {[%clk 0:03:07.3]}
10. Bb2 {[%clk 0:02:22.1]} 10... Rb8 {[%clk 0:03:04.8]} 11. a4 {[%clk
0:02:20.7]} 11... Be6 {[%clk 0:02:58.1]} 12. Ne3 {[%clk 0:02:18.6]} 12... Qd7
{[%clk 0:02:52.6]} 13. Re1 {[%clk 0:02:15.4]} 13... Rfd8 {[%clk 0:02:52.8]} 14.
Ng5 {[%clk 0:02:02.2]} 14... Nd5 {[%clk 0:02:38.7]} 15. Nxe6 {[%clk 0:01:55]}
15... Nxe3 {[%clk 0:02:39.1]} 16. fxe3 {[%clk 0:00:54.3]} 16... Qxe6 {[%clk
0:02:39.5]} 17. Qd3 {[%clk 0:00:38.2]} 17... Ne5 {[%clk 0:02:27.9]} 18. Qe4
{[%clk 0:00:34.3]} 18... f5 {[%clk 0:02:28.4]} 19. Qf4 {[%clk 0:00:19.1]} 19...
Nc4 {[%clk 0:02:24.2]} 20. Bc1 {[%clk 0:00:20.5]} 20... Nd6 {[%clk 0:02:17.6]}
21. Rb1 {[%clk 0:00:15.9]} 21... b6 {[%clk 0:02:15.2]} 22. Ba3 {[%clk
0:00:08.3]} 22... c4 {[%clk 0:01:58.6]} 23. d5 {[%clk 0:00:05.1]} 23... Qe5
{[%clk 0:01:57.2]} 24. Bxd6 {[%clk 0:00:02.8]} 24... Rxd6 {[%clk 0:01:57.5]} 25.
Qxc4 {[%clk 0:00:03.9]} 25... Qxe3+ {[%clk 0:01:57.1]} 26. Kh1 {[%clk
0:00:05.6]} 26... Qxc3 {[%clk 0:01:58.1]} 27. Qxc3 {[%clk 0:00:06.9]} 27... Bxc3
{[%clk 0:01:59.7]} 28. Rec1 {[%clk 0:00:08.3]} 28... Bf6 {[%clk 0:01:57.7]} 29.
Rc6 {[%clk 0:00:09.4]} 29... Kf7 {[%clk 0:01:55]} 30. a5 {[%clk 0:00:10.5]}
30... b5 {[%clk 0:01:49.7]} 31. a6 {[%clk 0:00:10.4]} 31... b4 {[%clk
0:01:50.6]} 32. Rb3 {[%clk 0:00:10.6]} 32... Ke8 {[%clk 0:01:47.7]} 33. Kg1
{[%clk 0:00:10.4]} 33... Kd7 {[%clk 0:01:48.6]} 34. Kf1 {[%clk 0:00:11.8]} 34...
Rxc6 {[%clk 0:01:48.7]} 35. dxc6+ {[%clk 0:00:12.8]} 35... Kc7 {[%clk
0:01:50.2]} 36. Ke1 {[%clk 0:00:11.2]} 36... Bc3+ {[%clk 0:01:50.9]} 37. Kd1
{[%clk 0:00:12.8]} 37... Rb6 {[%clk 0:01:52.3]} 38. Kc2 {[%clk 0:00:13.9]} 38...
Rxa6 {[%clk 0:01:53.9]} 39. Kd3 {[%clk 0:00:15]} 39... Ra2 {[%clk 0:01:53.9]}
40. h4 {[%clk 0:00:16.1]} 40... Rd2+ {[%clk 0:01:54.8]} 41. Ke3 {[%clk
0:00:17.3]} 41... Rd1 {[%clk 0:01:55.1]} 42. h5 {[%clk 0:00:14.3]} 42... a5
{[%clk 0:01:55.9]} 43. h6 {[%clk 0:00:12.4]} 43... a4 {[%clk 0:01:57]} 44. Rxc3
{[%clk 0:00:05.9]} 44... bxc3 {[%clk 0:01:58.2]} 45. Be4 {[%clk 0:00:04]} 45...
fxe4 {[%clk 0:01:58.5]} 0-1

[Event "*** Titled Tuesday Blitz"]
[Site "Chess.com"]
[Date "2019.02.05"]
[Round "6"]
[White "Samuray111"]
[Black "MehdiHosseinipour"]
[Result "1-0"]
[WhiteElo "2598"]
[BlackElo "2519"]
[TimeControl "180+2"]
[EndTime "14:22:57 PST"]
[Termination "Samuray111 won by resignation"]

1. Nf3 {[%clk 0:03:00.4]} 1... c5 {[%clk 0:03:01]} 2. e4 {[%clk 0:03:00.8]} 2...
d6 {[%clk 0:03:00.9]} 3. Bb5+ {[%clk 0:03:01.9]} 3... Bd7 {[%clk 0:03:01.2]} 4.
Bxd7+ {[%clk 0:03:02.7]} 4... Nxd7 {[%clk 0:03:03.1]} 5. O-O {[%clk 0:03:03.5]}
5... Ngf6 {[%clk 0:03:04.5]} 6. Qe2 {[%clk 0:03:04.1]} 6... e6 {[%clk
0:03:05.8]} 7. b3 {[%clk 0:03:05]} 7... Be7 {[%clk 0:03:06.8]} 8. Bb2 {[%clk
0:03:06.5]} 8... O-O {[%clk 0:03:08.7]} 9. c4 {[%clk 0:03:07.7]} 9... a6 {[%clk
0:03:08.9]} 10. Nc3 {[%clk 0:03:07.5]} 10... Rc8 {[%clk 0:03:09.3]} 11. Rac1
{[%clk 0:03:06.5]} 11... Qa5 {[%clk 0:03:03.6]} 12. Ne1 {[%clk 0:03:04.2]} 12...
Rfe8 {[%clk 0:02:56.9]} 13. Nc2 {[%clk 0:03:05]} 13... Bf8 {[%clk 0:02:55.6]}
14. f4 {[%clk 0:03:05.8]} 14... Nb8 {[%clk 0:02:18.2]} 15. d4 {[%clk 0:03:03.3]}
15... cxd4 {[%clk 0:02:16.9]} 16. Nxd4 {[%clk 0:03:03.5]} 16... Nc6 {[%clk
0:01:55.7]} 17. Nxc6 {[%clk 0:02:52.4]} 17... Rxc6 {[%clk 0:01:53.7]} 18. Kh1
{[%clk 0:02:53.5]} 18... Nd7 {[%clk 0:01:45.6]} 19. Rf3 {[%clk 0:02:46.2]} 19...
g6 {[%clk 0:01:43.7]} 20. Rd3 {[%clk 0:02:37.6]} 20... Qc7 {[%clk 0:01:32.9]}
21. Rcd1 {[%clk 0:02:33.9]} 21... b6 {[%clk 0:01:22.6]} 22. e5 {[%clk 0:02:29]}
22... Nc5 {[%clk 0:01:20.9]} 23. exd6 {[%clk 0:02:25.6]} 23... Bxd6 {[%clk
0:01:03.5]} 24. Ne4 {[%clk 0:02:04.1]} 24... Nxe4 {[%clk 0:00:54]} 25. Qxe4
{[%clk 0:02:04.8]} 25... e5 {[%clk 0:00:44.6]} 26. fxe5 {[%clk 0:01:50]} 26...
Bxe5 {[%clk 0:00:42.8]} 27. Rd7 {[%clk 0:01:45.7]} 27... Rce6 {[%clk 0:00:11.5]}
28. Rxc7 {[%clk 0:01:32.8]} 28... Bxc7 {[%clk 0:00:13.4]} 29. Qb1 {[%clk
0:01:28.4]} 29... Re2 {[%clk 0:00:14.4]} 30. Bc3 {[%clk 0:01:25.1]} 30... Be5
{[%clk 0:00:10.2]} 31. Bxe5 {[%clk 0:01:24.1]} 31... R8xe5 {[%clk 0:00:12.1]}
32. h3 {[%clk 0:01:25.4]} 32... Rg5 {[%clk 0:00:11.6]} 33. Qa1 {[%clk
0:01:18.6]} 33... Re8 {[%clk 0:00:09.1]} 34. Qf6 {[%clk 0:01:18.3]} 34... Rf5
{[%clk 0:00:09.9]} 35. Qxb6 {[%clk 0:01:18.5]} 1-0